Workbook

Sheet INSTRUCTIVO

Sheet MODELO
F3: Oficina A | G3: Oficina B | H3: Oficina C | I3: Oficina D | J3: Sede Principal | K3: Entidad
B4: CUENTAS Y CALCULOS | D4: A | E4: Parámetros Generales
E5: Tipo Oficina
E6: Sede Propia
E7: Departamento
E8: Municipio
E9: Número De Empleados | K9: =SUM(F9:J9) -> 0
E10: Número De Asociados | K10: =SUM(F10:J10) -> 0
E11: Número De Operaciones O Transacciones | K11: =SUM(F11:J11) -> 0
E12: Tasa De Colocación promedio Oficina | K12: =IFERROR(AVERAGE(F12:J12),0) -> 0
E13: Tasa De Captación Promedio Oficina | K13: =IFERROR(AVERAGE(F13:J13),0) -> 0
E14: Tasa Promedio De Colocación Entidad | K14: =IFERROR(AVERAGE(F14:J14),0) -> 0
E15: Tasa Promedio Otras Inversiones Entidad | K15: =IFERROR(AVERAGE(F15:J15),0) -> 0
E16: Tasa Promedio De Inversiones Liquidez Entidad | K16: 0
E17: Tasa Promedio De Captación Entidad | K17: =IFERROR(AVERAGE(F17:J17),0) -> 0
D19: B | E19: Balance General | F19: =TRANSPOSE(Hoja3!E45:E49) -> 0.1009045511 | G19: 0.1750016761 | H19: 0.2860570007 | I19: 0.2198738642 | J19: 0.2181629079
B20: 100000 | E20: ACTIVO | F20: =SUM(F21:F26) -> 0 | G20: 0 | H20: 0 | I20: 0 | J20: 0 | K20: =SUM(K21:K26) -> 0
B21: 110500 + 111000 | E21: Efectivo | K21: =SUM(F21:J21) -> 0
B22: 111500 + 120300 | E22: Inversiones Fondo de liquidez | K22: =SUM(F22:J22) -> 0
B23: 120000 - 120300 | E23: Otras Inversiones | K23: =SUM(F23:J23) -> 0
B24: 140000 | E24: Cartera | K24: =SUM(F24:J24) -> 0
B25: 130000 + 160000 + 170000 + 180000 + 190000 | E25: Otros Activos | K25: =SUM(F25:J25) -> 0
B26: Calculo | E26: Disponible para colocar | F26: =IF(F5="Captadora",(F40-F21-F22-F23-F24-F25),0) -> 0 | G26: =IF(G5="Captadora",(G40-G21-G22-G23-G24-G25),0) -> 0 | H26: =IF(H5="Captadora",(H40-H21-H22-H23-H24-H25),0) -> 0 | I26: =IF(I5="Captadora",(I40-I21-I22-I23-I24-I25),0) -> 0 | J26: =IF(J5="Captadora",(J40-J21-J22-J23-J24-J25),0) -> 0 | K26: =+F26+G26+H26+I26+J26-F26-G26-H26-I26-J26 -> 0
B28: 200000 | E28: PASIVO | F28: =SUM(F29:F32) -> 0 | G28: 0 | H28: 0 | I28: 0 | J28: 0 | K28: =SUM(K29:K32) -> 0
B29: 210000 | E29: Depósitos | K29: =SUM(F29:J29) -> 0
B30: 230000 | E30: Obligaciones Financieras | K30: =SUM(F30:J30) -> 0
B31: 240000 + 250000 + 260000 + 270000 + 280000 | E31: Otros pasivos | K31: =SUM(F31:J31) -> 0
B32: Calculo | E32: Fondeo requerido | F32: =IF(F5="Colocadora",(F20-F29-F30-F34-F31),0) -> 0 | G32: =IF(G5="Colocadora",(G20-G29-G30-G34-G31),0) -> 0 | H32: =IF(H5="Colocadora",(H20-H29-H30-H34-H31),0) -> 0 | I32: =IF(I5="Colocadora",(I20-I29-I30-I34-I31),0) -> 0 | J32: =IF(J5="Colocadora",(J20-J29-J30-J34-J31),0) -> 0 | K32: =+F32+G32+H32+I32+J32-F32-G32-H32-I32-J32 -> 0
B34: 300000 | E34: PATRIMONIO | F34: =SUM(F35:F38) -> 0 | G34: 0 | H34: 0 | I34: 0 | J34: 0 | K34: =SUM(K35:K38) -> 0
B35: 310000 | E35: Aportes | K35: =SUM(F35:J35) -> 0
B36: 320000 | E36: Reservas | K36: =SUM(F36:J36) -> 0
B37: 350000 | E37: Resultados | F37: =+F88 -> 0 | G37: =+G88 -> 0 | H37: 0 | I37: 0 | J37: 0 | K37: =SUM(F37:J37) -> 0
B38: 330000 + 340000 + 360000 + 370000 + 390000 | E38: Otros | K38: =SUM(F38:J38) -> 0
B40: Calculo | E40: TOTAL PASIVO + PATRIMONIO | F40: =+F28+F34 -> 0 | G40: 0 | H40: 0 | I40: 0 | J40: 0 | K40: 0
E41: Ecuación Patrimonial | F41: =+F40-F20 -> 0 | G41: 0 | H41: 0 | I41: 0 | J41: 0 | K41: =+K40-K20 -> 0
D43: C | E43: Estado de Resultados
B44: Suma | E44: INGRESOS FINANCIEROS | F44: =SUM(F45:F47) -> 0 | G44: =SUM(G45:G47) -> 0 | H44: 0 | I44: 0 | J44: 0 | K44: 0
B45: 415000 - 417500 | E45: Cartera | K45: =SUM(F45:J45) -> 0
B46: 410500 + 411000 + 413000 + 413500 + 414000 + 414500 + 414700 + 415500 + 416000 + 416500 + 417000 | E46: Otros ingresos financieros | K46: =SUM(F46:J46) -> 0
B47: Calculo | E47: Ingresos por recursos disponibles Macro | K47: =+F47+G47+H47+I47+J47-F47-G47-H47-I47-J47 -> 0
F48: =(F26*(((1+((F12+F17)/2))^(3/12))-1)) -> 0 | G48: =(G26*(((1+((G12+G17)/2))^(3/12))-1)) -> 0 | H48: 0 | I48: 0 | J48: =(J26*(((1+((J12+J17)/2))^(3/12))-1)) -> 0
B49: Suma | E49: EGRESOS FINANCIEROS | F49: =SUM(F50:F52) -> 0 | G49: 0 | H49: 0 | I49: 0 | J49: 0 | K49: =SUM(K50:K52) -> 0
B50: 615000 | E50: Depósitos | K50: =SUM(F50:J50) -> 0
B51: 613000 + 613500 + 614000 + 614500 + 615500 + 617000 + 700000 | E51: Otros egresos | K51: =SUM(F51:J51) -> 0
B52: Calculo | E52: Fondeo requerido Macro | K52: =+F52+G52+H52+I52+J52-F52-G52-H52-I52-J52 -> 0
F53: =(F$32*(((1+(F17))^(3/12))-1)) -> 0 | G53: =(G$32*(((1+(G17))^(3/12))-1)) -> 0 | H53: 0 | I53: 0 | J53: =-SUM(F53:I53)+J47 -> 0
B54: Calculo | E54: UTILIDAD FINANCIERA | F54: =+F44-F49 -> 0 | G54: 0 | H54: 0 | I54: 0 | J54: 0 | K54: 0
B55: Indicador | E55: Margen Financiero | F55: =IFERROR(F54/F$44,0) -> 0 | G55: 0 | H55: 0 | I55: 0 | J55: 0 | K55: 0
B57: Suma | E57: GASTOS ADMINISTRATIVOS | F57: =+F58+F59+F60+F67 -> 0 | G57: 0 | H57: 0 | I57: 0 | J57: 0 | K57: 0
B58: 510500 + 540500 | E58: Beneficios a Empleados directos | K58: =SUM(F58:J58) -> 0
E59: Beneficios a Empleados compensado directos | K59: =+F59+G59+H59+I59+J59-F59-G59-H59-I59-J59 -> 0
E60: Gastos Generales directos | F60: =+F61+F62+F63+F64+F65+F66 -> 0 | G60: 0 | H60: 0 | I60: 0 | J60: 0 | K60: 0
B61: 511001 + 511002 + 511019 + 511024 + 511030 + 511095 + 511005 + 510700 | E61: Gastos Generales | K61: =SUM(F61:J61) -> 0
B62: 511003 + 511004 + 511006 + 511007 + 511008 + 511009 + 511033 + 511031 | E62: Gast Arriend, Mantenimiento, Papelería y Suministros | K62: =SUM(F62:J62) -> 0
B63: 511020 + 511021 + 511022 + 511023 | E63: Gastos Asamblea y Directivos | K63: 0
B64: 511010 + 511011 + 511015 + 511016 + 511017 | E64: Gastos Papelería y Suministros | K64: 0
B65: 511012 + 511013 + 511014 + 511029 + 511034 + 511035 + 511028 | E65: Servicios Generales | K65: 0
B66: 511018 + 511025 + 511026 + 511027 + 511032 + 541000 + 542500 | E66: Gastos Comerciales | K66: 0
E67: Gastos Generales compensados directos | J67: =-SUM(F67:I67) -> 0 | K67: =+F67+G67+H67+I67+J67-F67-G67-H67-I67-J67 -> 0
B69: Indicador | E69: Indicador de gastos | F69: =IFERROR(F57/F$44,0) -> 0 | G69: 0 | H69: 0 | I69: 0 | J69: 0 | K69: 0
B71: Calculo | E71: DETERIORO NETO | F71: =+F72-F73 -> 0 | G71: 0 | H71: 0 | I71: 0 | J71: 0 | K71: 0
B72: 511500 | E72: Deterioro | K72: =SUM(F72:J72) -> 0
B73: 422500 | E73: Recuperaciones | K73: =SUM(F73:J73) -> 0
B75: 512000 + 542000 + 513500 + 514000 + 512500 + 541500 | E75: DEPRECIACIONES Y AMORTIZACIONES | K75: =SUM(F75:J75) -> 0
E77: UTILIDAD OPERATIVA | F77: =+F54-F57-F71-F75 -> 0 | G77: 0 | H77: 0 | I77: 0 | J77: 0 | K77: =+K54-K57-K71-K75 -> 0
E78: Margen Operativo | F78: =IFERROR(F77/F$44,0) -> 0 | G78: 0 | H78: 0 | I78: 0 | J78: 0 | K78: 0
B80: Suma | E80: OTROS INGRESOS | F80: =+F81+F82 -> 0 | G80: 0 | H80: 0 | I80: 0 | J80: 0 | K80: 0
B81: 420500 + 421000 + 422000 + 423000 + 423600 + 424000 + 424500 + 425000 + 425500 + 426000 | E81: Otros ingresos | K81: =SUM(F81:J81) -> 0
E82: Otros ingresos compensados directos | J82: =-SUM(F82:I82) -> 0 | K82: =+F82+G82+H82+I82+J82-F82-G82-H82-I82-J82 -> 0
B84: Suma | E84: OTROS EGRESOS | F84: =+F85+F86 -> 0 | G84: 0 | H84: 0 | I84: 0 | J84: 0 | K84: 0
B85: 520000 | E85: Otros egresos | K85: =SUM(F85:J85) -> 0
E86: Otros egresos compensados directos | J86: =-SUM(F86:I86) -> 0 | K86: =+F86+G86+H86+I86+J86-F86-G86-H86-I86-J86 -> 0
E88: EXCEDENTE O PERDIDA SIN IMPACTO DE SEDE PRINCIPAL | F88: =+F77+F80-F84 -> 0 | G88: 0 | H88: 0 | I88: 0 | J88: 0 | K88: =+K77+K80-K84 -> 0
E89: Margen Neto sin Sede Principal | F89: =IFERROR(F88/F$44,0) -> 0 | G89: 0 | H89: 0 | I89: 0 | J89: 0 | K89: 0
E90: EXCEDENTE O PERDIDA CON IMPACTO DE SEDE PRINCIPAL | K90: =SUM(F90:J90) -> 0
E91: Margen Neto con Sede Principal | F91: =IFERROR(F90/F$44,0) -> 0 | G91: =IFERROR(G90/G$44,0) -> 0 | H91: 0 | I91: 0 | J91: 0 | K91: 0
D93: D | E93: Principales Indicadores
E94: Indicador Cartera Por Riesgo
E95: Indicador Cobertura Total Por Riesgo
E96: Indicador Margen Financiero | F96: =IFERROR(F54/F$44,0) -> 0 | G96: =IFERROR(G54/G$44,0) -> 0 | H96: 0 | I96: 0 | J96: 0 | K96: =IFERROR(K54/K$44,0) -> 0
E97: Indicador Gastos Administrativos | F97: =IFERROR(F57/F44,0) -> 0 | G97: =IFERROR(G57/G44,0) -> 0 | H97: 0 | I97: 0 | J97: 0 | K97: =IFERROR(K57/K44,0) -> 0
E98: Indicador Margen Operativo | F98: =IFERROR(F77/F44,0) -> 0 | G98: =IFERROR(G77/G44,0) -> 0 | H98: 0 | I98: 0 | J98: 0 | K98: =IFERROR(K77/K44,0) -> 0
E99: Indicador Margen Neto Sin Impacto Sede Principal | F99: =IFERROR(F88/F44,0) -> 0 | G99: =IFERROR(G88/G44,0) -> 0 | H99: 0 | I99: 0 | J99: 0 | K99: =IFERROR(K88/K44,0) -> 0
E100: Indicador Margen Neto Con Impacto Sede Principal | F100: =+F91 -> 0 | G100: =+G91 -> 0 | H100: 0 | I100: 0 | J100: 0 | K100: =+K91 -> 0

Sheet MODELO EJEMPLO
F3: Oficina A | G3: Oficina B | H3: Oficina C | I3: Oficina D | J3: Sede Principal | K3: Entidad
B4: CUENTAS Y CALCULOS | D4: A | E4: Parámetros Generales
E5: Tipo Oficina | F5: Colocadora | G5: Colocadora | H5: Colocadora | I5: Colocadora | J5: Captadora | K5: Entidad
E6: Sede Propia | F6: NO | G6: SI | H6: SI | I6: SI | J6: SI
E7: Departamento | F7: LA GUAJIRA | G7: CESAR | H7: LA GUAJIRA | I7: LA GUAJIRA | J7: ATLANTICO
E8: Municipio | F8: ALBANIA | G8: VALLEDUPAR | H8: FONSECA | I8: RIOHACHA | J8: BARRANQUILLA
E9: Número De Empleados | F9: 2 | G9: 4 | H9: 2 | I9: 3 | J9: 24 | K9: =SUM(F9:J9) -> 35
E10: Número De Asociados | F10: 721 | G10: 1505 | H10: 2048 | I10: 1447 | J10: 2157 | K10: =SUM(F10:J10) -> 7878
E11: Número De Operaciones O Transacciones | F11: 7000 | G11: 18000 | H11: 20000 | I11: 35000 | J11: 40000 | K11: =SUM(F11:J11) -> 120000
E12: Tasa De Colocación promedio Oficina | F12: 0.126 | G12: 0.135 | H12: 0.13 | I12: 0.128 | J12: 0.129 | K12: =IFERROR(AVERAGE(F12:J12),0) -> 0.1296
E13: Tasa De Captación Promedio Oficina | F13: 0.035 | G13: 0.04 | H13: 0.05 | I13: 0.045 | J13: 0.055 | K13: =IFERROR(AVERAGE(F13:J13),0) -> 0.045
E14: Tasa Promedio De Colocación Entidad | F14: 0.13 | G14: 0.13 | H14: 0.13 | I14: 0.13 | J14: 0.13 | K14: =IFERROR(AVERAGE(F14:J14),0) -> 0.13
E15: Tasa Promedio Otras Inversiones Entidad | K15: 0.025
E16: Tasa Promedio De Inversiones Liquidez Entidad | K16: 0.035
E17: Tasa Promedio De Captación Entidad | F17: 0.045 | G17: 0.045 | H17: 0.045 | I17: 0.045 | J17: 0.045 | K17: =AVERAGE(F17:J17) -> 0.045
D19: B | E19: Balance General | F19: 0.1009045511 | G19: 0.1750016761 | H19: 0.2860570007 | I19: 0.2198738642 | J19: 0.2181629079
B20: 100000 | E20: ACTIVO | F20: =SUM(F21:F26) -> 9249.440667 | G20: 16041.57198 | H20: 26221.48582 | I20: 20154.79223 | J20: 58456.08983 | K20: =SUM(K21:K26) -> 92292.56015
B21: 110500 + 111000 | E21: Efectivo | F21: 333.7548745 | G21: 578.8407146 | H21: 946.1705877 | I21: 727.26129 | J21: 721.6020801 | K21: =SUM(F21:J21) -> 3307.629547
B22: 111500 + 120300 | E22: Inversiones Fondo de liquidez | F22: 372.6520953 | G22: 646.3012875 | H22: 1056.441355 | I22: 812.0194316 | J22: 805.7006733 | K22: =SUM(F22:J22) -> 3693.114843
B23: 120000 - 120300 | E23: Otras Inversiones | F23: 0 | G23: 0 | H23: 0 | I23: 0 | J23: 627.3124648 | K23: =SUM(F23:J23) -> 627.3124648
B24: 140000 | E24: Cartera | F24: 7891.279623 | G24: 13686.07408 | H24: 22371.19889 | I24: 17195.32099 | J24: 17061.51498 | K24: =SUM(F24:J24) -> 78205.38855
B25: 130000 + 160000 + 170000 + 180000 + 190000 | E25: Otros Activos | F25: 651.7540735 | G25: 1130.355906 | H25: 1847.674991 | I25: 1420.190518 | J25: 1409.139255 | K25: =SUM(F25:J25) -> 6459.114743
B26: Calculo | E26: Disponible para colocar | F26: =IF(F5="Captadora",(F40-F21-F22-F23-F24-F25),0) -> 0 | G26: =IF(G5="Captadora",(G40-G21-G22-G23-G24-G25),0) -> 0 | H26: =IF(H5="Captadora",(H40-H21-H22-H23-H24-H25),0) -> 0 | I26: =IF(I5="Captadora",(I40-I21-I22-I23-I24-I25),0) -> 0 | J26: =IF(J5="Captadora",(J40-J21-J22-J23-J24-J25),0) -> 37830.82038 | K26: =+F26+G26+H26+I26+J26-F26-G26-H26-I26-J26 -> 0
F27: 0.0457543265 | G27: 0.08357507216 | H27: 0.1221245716 | I27: 0.07374661997 | J27: 0.6747994098
B28: 200000 | E28: PASIVO | F28: =SUM(F29:F32) -> 7050.510934 | G28: 12148.78165 | H28: 18789.99769 | I28: 12214.29324 | J28: 46867.71867 | K28: =SUM(K29:K32) -> 59240.48172
B29: 210000 | E29: Depósitos | F29: 1559.273293 | G29: 2848.176073 | H29: 4161.914239 | I29: 2513.229759 | J29: 22996.66017 | K29: =SUM(F29:J29) -> 34079.25353
B30: 230000 | E30: Obligaciones Financieras | F30: 0 | G30: 0 | H30: 0 | I30: 0 | J30: 21193.92394 | K30: =SUM(F30:J30) -> 21193.92394
B31: 240000 + 250000 + 260000 + 270000 + 280000 | E31: Otros pasivos | F31: 181.5213339 | G31: 331.5677388 | H31: 484.5053318 | I31: 292.5752787 | J31: 2677.134565 | K31: =SUM(F31:J31) -> 3967.304249
B32: Calculo | E32: Fondeo requerido | F32: =IF(F5="Colocadora",(F20-F29-F30-F34-F31),0) -> 5309.716307 | G32: =IF(G5="Colocadora",(G20-G29-G30-G34-G31),0) -> 8969.037838 | H32: =IF(H5="Colocadora",(H20-H29-H30-H34-H31),0) -> 14143.57812 | I32: =IF(I5="Colocadora",(I20-I29-I30-I34-I31),0) -> 9408.488201 | J32: =IF(J5="Colocadora",(J20-J29-J30-J34-J31),0) -> 0 | K32: =+F32+G32+H32+I32+J32-F32-G32-H32-I32-J32 -> -3.637978807e-12
F33: 0.09670241064 | G33: 0.1602504111 | H33: 0.2910330462 | I33: 0.3110925356 | J33: 0.1409215964
B34: 300000 | E34: PATRIMONIO | F34: =SUM(F35:F38) -> 2198.929733 | G34: 3892.790333 | H34: 7431.488134 | I34: 7940.498987 | J34: 11588.37116 | K34: =SUM(K35:K38) -> 33052.07834
B35: 310000 | E35: Aportes | F35: 2400.866586 | G35: 3978.596343 | H35: 7225.585293 | I35: 7723.609671 | J35: 3498.712699 | K35: =SUM(F35:J35) -> 24827.37059
B36: 320000 | E36: Reservas | F36: 0 | G36: 0 | H36: 0 | I36: 0 | J36: 2740.385688 | K36: =SUM(F36:J36) -> 2740.385688
B37: 350000 | E37: Resultados | F37: =+F88 -> -201.9368533 | G37: =+G88 -> -85.80600961 | H37: 205.9028405 | I37: 216.8893166 | J37: 167.2955727 | K37: =SUM(F37:J37) -> 302.3448669
B38: 330000 + 340000 + 360000 + 370000 + 390000 | E38: Otros | F38: 0 | G38: 0 | H38: 0 | I38: 0 | J38: 5181.977196 | K38: =SUM(F38:J38) -> 5181.977196
B40: Calculo | E40: TOTAL PASIVO + PATRIMONIO | F40: =+F28+F34 -> 9249.440667 | G40: 16041.57198 | H40: 26221.48582 | I40: 20154.79223 | J40: 58456.08983 | K40: 92292.56006
E41: Ecuación Patrimonial | F41: =+F40-F20 -> 0 | G41: 0 | H41: 0 | I41: 0 | J41: 0 | K41: =+K40-K20 -> -8.670067473e-05
D43: C | E43: Estado de Resultados
B44: Suma | E44: INGRESOS FINANCIEROS | F44: =SUM(F45:F47) -> 328.9253703 | G44: =SUM(G45:G47) -> 614.4065791 | H44: 917.3496109 | I44: 895.6976042 | J44: 1458.689047 | K44: 3434.261562
B45: 415000 - 417500 | E45: Cartera | F45: 328.9253703 | G45: 614.4065791 | H45: 917.3496109 | I45: 895.6976042 | J45: 677.8823978 | K45: =SUM(F45:J45) -> 3434.261562
B46: 410500 + 411000 + 413000 + 413500 + 414000 + 414500 + 414700 + 415500 + 416000 + 416500 + 417000 | E46: Otros ingresos financieros | F46: 0 | G46: 0 | H46: 0 | I46: 0 | J46: 0 | K46: =SUM(F46:J46) -> 0
B47: Calculo | E47: Ingresos por recursos disponibles Macro | F47: 0 | G47: 0 | H47: 0 | I47: 0 | J47: 780.8066493 | K47: =+F47+G47+H47+I47+J47-F47-G47-H47-I47-J47 -> 0
F48: =(F26*(((1+((F12+F17)/2))^(3/12))-1)) -> 0 | G48: =(G26*(((1+((G12+G17)/2))^(3/12))-1)) -> 0 | H48: 0 | I48: 0 | J48: =(J26*(((1+((J12+J17)/2))^(3/12))-1)) -> 797.2616776
B49: Suma | E49: EGRESOS FINANCIEROS | F49: =SUM(F50:F52) -> 117.5654841 | G49: 233.3284408 | H49: 363.6355965 | I49: 218.532659 | J49: 860.6265293 | K49: =SUM(K50:K52) -> 1012.881974
B50: 615000 | E50: Depósitos | F50: 59.456499 | G50: 135.17222 | H50: 208.849743 | I50: 115.5671389 | J50: 493.8363727 | K50: =SUM(F50:J50) -> 1012.881974
B51: 613000 + 613500 + 614000 + 614500 + 615500 + 617000 + 700000 | E51: Otros egresos | F51: 0 | G51: 0 | H51: 0 | I51: 0 | J51: 0 | K51: =SUM(F51:J51) -> 0
B52: Calculo | E52: Fondeo requerido Macro | F52: 58.10898512 | G52: 98.15622081 | H52: 154.7858535 | I52: 102.96552 | J52: 366.7901566 | K52: =+F52+G52+H52+I52+J52-F52-G52-H52-I52-J52 -> 0
F53: =(F$32*(((1+(F17))^(3/12))-1)) -> 58.75196049 | G53: =(G$32*(((1+(G17))^(3/12))-1)) -> 99.24231846 | H53: 156.4985575 | I53: 104.1048326 | J53: =-SUM(F53:I53)+J47 -> 362.2089803
B54: Calculo | E54: UTILIDAD FINANCIERA | F54: =+F44-F49 -> 211.3598862 | G54: 381.0781383 | H54: 553.7140144 | I54: 677.1649452 | J54: 598.0625178 | K54: 2421.379589
B55: Indicador | E55: Margen Financiero | F55: =IFERROR(F54/F$44,0) -> 0.6425770259 | G55: 0.6202377241 | H55: 0.6036019504 | I55: 0.7560196009 | J55: 0.4100000058 | K55: 0.7050655708
B57: Suma | E57: GASTOS ADMINISTRATIVOS | F57: =+F58+F59+F60+F67 -> 360.3916451 | G57: 403.6265229 | H57: 292.0915176 | I57: 343.8909111 | J57: 227.5847179 | K57: 1627.585315
B58: 510500 + 540500 | E58: Beneficios a Empleados directos | F58: 96.747944 | G58: 121.593825 | H58: 107.340395 | I58: 146.570419 | J58: 160.856945 | K58: =SUM(F58:J58) -> 633.109528
E59: Beneficios a Empleados compensado directos | F59: 2 | G59: 3 | H59: 2 | I59: 4 | J59: =-SUM(F59:I59) -> -11 | K59: =+F59+G59+H59+I59+J59-F59-G59-H59-I59-J59 -> 0
E60: Gastos Generales directos | F60: =+F61+F62+F63+F64+F65+F66 -> 246.6437011 | G60: 259.0326979 | H60: 164.7511226 | I60: 168.3204921 | J60: 155.7277729 | K60: 994.4757865
B61: 511001 + 511002 + 511019 + 511024 + 511030 + 511095 + 511005 + 510700 | E61: Gastos Generales | F61: 76.25708274 | G61: 80.08750188 | H61: 50.9376073 | I61: 52.04118181 | J61: 47.14692913 | K61: =SUM(F61:J61) -> 306.4703029
B62: 511003 + 511004 + 511006 + 511007 + 511008 + 511009 + 511033 + 511031 | E62: Gast Arriend, Mantenimiento, Papelería y Suministros | F62: 26.99204973 | G62: 28.34786954 | H62: 18.02993742 | I62: 18.42055999 | J62: 19.92529436 | K62: =SUM(F62:J62) -> 111.715711
B63: 511020 + 511021 + 511022 + 511023 | E63: Gastos Asamblea y Directivos | F63: 79.3108889 | G63: 83.29470176 | H63: 52.97746476 | I63: 54.12523323 | J63: 49.03498435 | K63: 318.743273
B64: 511010 + 511011 + 511015 + 511016 + 511017 | E64: Gastos Papelería y Suministros | F64: 9.748851886 | G64: 10.23854002 | H64: 6.511961528 | I64: 6.653044611 | J64: 6.027353952 | K64: 39.179752
B65: 511012 + 511013 + 511014 + 511029 + 511034 + 511035 + 511028 | E65: Servicios Generales | F65: 39.32015242 | G65: 41.29521702 | H65: 26.26476665 | I65: 26.83379861 | J65: 24.31019354 | K65: 158.0241282
B66: 511018 + 511025 + 511026 + 511027 + 511032 + 541000 + 542500 | E66: Gastos Comerciales | F66: 15.01467541 | G66: 15.76886765 | H66: 10.02938497 | I66: 10.24667381 | J66: 9.28301755 | K66: 60.34261939
E67: Gastos Generales compensados directos | F67: 15 | G67: 20 | H67: 18 | I67: 25 | J67: =-SUM(F67:I67) -> -78 | K67: =+F67+G67+H67+I67+J67-F67-G67-H67-I67-J67 -> 0
B69: Indicador | E69: Indicador de gastos | F69: =IFERROR(F57/F$44,0) -> 1.095663873 | G69: 0.6569371758 | H69: 0.3184080684 | I69: 0.3839363971 | J69: 0.1560200362 | K69: 0.4739258455
B71: Calculo | E71: DETERIORO NETO | F71: =+F72-F73 -> 3.3018406 | G71: 5.726477477 | H71: 9.360475903 | I71: 7.194803842 | J71: 7.138817218 | K71: 32.72241504
B72: 511500 | E72: Deterioro | F72: 53.8219583 | G72: 93.34497614 | H72: 152.5813038 | I72: 117.279566 | J72: 116.3669508 | K72: =SUM(F72:J72) -> 533.394755
B73: 422500 | E73: Recuperaciones | F73: 50.5201177 | G73: 87.61849866 | H73: 143.2208279 | I73: 110.0847621 | J73: 109.2281336 | K73: =SUM(F73:J73) -> 500.67234
B75: 512000 + 542000 + 513500 + 514000 + 512500 + 541500 | E75: DEPRECIACIONES Y AMORTIZACIONES | F75: 6.056593653 | G75: 7.083536269 | H75: 5.48849755 | I75: 12.73506362 | J75: 27.29554983 | K75: =SUM(F75:J75) -> 58.65924092
E77: UTILIDAD OPERATIVA | F77: =+F54-F57-F71-F75 -> -158.3901931 | G77: -35.35839835 | H77: 246.7735233 | I77: 313.3441667 | J77: =+J54-J57-J71-J75 -> 336.0434329 | K77: =+K54-K57-K71-K75 -> 702.4126182
E78: Margen Operativo | F78: =IFERROR(F77/F$44,0) -> -0.4815383895 | G78: -0.05754886023 | H78: 0.2690070616 | I78: 0.3498325386 | J78: 0.2303735903 | K78: 0.2045309029
B80: Suma | E80: OTROS INGRESOS | F80: =+F81+F82 -> 4.069475692 | G80: 7.733537846 | H80: 10.56055077 | I80: 9.358497919 | J80: 0.3258834055 | K80: 32.04794563
B81: 420500 + 421000 + 422000 + 423000 + 423600 + 424000 + 424500 + 425000 + 425500 + 426000 | E81: Otros ingresos | F81: 3.069475692 | G81: 5.733537846 | H81: 8.560550767 | I81: 8.358497919 | J81: 6.325883406 | K81: =SUM(F81:J81) -> 32.04794563
E82: Otros ingresos compensados directos | F82: 1 | G82: 2 | H82: 2 | I82: 1 | J82: =-SUM(F82:I82) -> -6 | K82: =+F82+G82+H82+I82+J82-F82-G82-H82-I82-J82 -> 0
B84: Suma | E84: OTROS EGRESOS | F84: =+F85+F86 -> 47.61613585 | G84: 58.18114911 | H84: 51.43123352 | I84: 105.8133481 | J84: 169.0737436 | K84: 432.1156102
B85: 520000 | E85: Otros egresos | F85: 44.61613585 | G85: 52.18114911 | H85: 40.43123352 | I85: 93.81334809 | J85: 201.0737436 | K85: =SUM(F85:J85) -> 432.1156102
E86: Otros egresos compensados directos | F86: 3 | G86: 6 | H86: 11 | I86: 12 | J86: =-SUM(F86:I86) -> -32 | K86: =+F86+G86+H86+I86+J86-F86-G86-H86-I86-J86 -> 0
E88: EXCEDENTE O PERDIDA SIN IMPACTO DE SEDE PRINCIPAL | F88: =+F77+F80-F84 -> -201.9368533 | G88: -85.80600961 | H88: 205.9028405 | I88: 216.8893166 | J88: 167.2955727 | K88: =+K77+K80-K84 -> 302.3449537
E89: Margen Neto sin Sede Principal | F89: =IFERROR(F88/F$44,0) -> -0.6139290899 | G89: -0.1396567233 | H89: 0.2244540556 | I89: 0.2421456924 | J89: 0.1146889894 | K89: 0.08803783526
E90: EXCEDENTE O PERDIDA CON IMPACTO DE SEDE PRINCIPAL | F90: -228 | G90: -98 | H90: 190 | I90: 201 | J90: =+K88-I90-H90-G90-F90 -> 237.3449537 | K90: =SUM(F90:J90) -> 302.3449537
E91: Margen Neto con Sede Principal | F91: =IFERROR(F90/F$44,0) -> -0.6931663549 | G91: =IFERROR(G90/G$44,0) -> -0.1595035003 | H91: 0.2071184178 | I91: 0.2244060931 | J91: 0.1627111372 | K91: 0.08803783526
D93: D | E93: Principales Indicadores
E94: Indicador Cartera Por Riesgo | F94: =+Hoja4!I11 -> 0.04129498292 | G94: =+Hoja4!H11 -> 0.05476002092 | H94: =+Hoja4!G11 -> 0.02677056431 | I94: =+Hoja4!F11 -> 0.03429393264 | J94: =+Hoja4!E11 -> 0.2010743424 | K94: 0.08071464596
E95: Indicador Cobertura Total Por Riesgo | F95: =+Hoja4!I24 -> 0.8788361208 | G95: =+Hoja4!H24 -> 0.9182961327 | H95: =+Hoja4!G24 -> 1.457555169 | I95: =+Hoja4!F24 -> 1.278900795 | J95: =+Hoja4!E24 -> 0.462571591 | K95: =+Hoja4!J24 -> 0.6924066168
E96: Indicador Margen Financiero | F96: =IFERROR(F54/F$44,0) -> 0.6425770259 | G96: =IFERROR(G54/G$44,0) -> 0.6202377241 | H96: 0.6036019504 | I96: 0.7560196009 | J96: 0.4100000058 | K96: 0.7050655708
E97: Indicador Gastos Administrativos | F97: =+F57/F44 -> 1.095663873 | G97: =+G57/G44 -> 0.6569371758 | H97: 0.3184080684 | I97: 0.3839363971 | J97: 0.1560200362 | K97: 0.4739258455
E98: Indicador Margen Operativo | F98: =+F77/F44 -> -0.4815383895 | G98: =+G77/G44 -> -0.05754886023 | H98: 0.2690070616 | I98: 0.3498325386 | J98: 0.2303735903 | K98: 0.2045309029
E99: Indicador Margen Neto Sin Impacto Sede Principal | F99: =+F88/F44 -> -0.6139290899 | G99: =+G88/G44 -> -0.1396567233 | H99: 0.2244540556 | I99: 0.2421456924 | J99: 0.1146889894 | K99: 0.08803783526
E100: Indicador Margen Neto Con Impacto Sede Principal | F100: =+F91 -> -0.6931663549 | G100: =+G91 -> -0.1595035003 | H100: 0.2071184178 | I100: 0.2244060931 | J100: 0.1627111372 | K100: 0.08803783526

Sheet Hoja3 (hidden)
D4: 1674 | E4: =+D4/$D$9 -> 0.2737530662 | F4: =ROUND($F$9*E4,0) -> 2157 | G4: Direccion General | H4: 24
D5: 1123 | E5: =+D5/$D$9 -> 0.1836467702 | F5: =ROUND($F$9*E5,0) -> 1447 | G5: Sucursal | H5: 3
D6: 1590 | E6: =+D6/$D$9 -> 0.2600163532 | F6: =ROUND($F$9*E6,0) -> 2048 | G6: Sucursal | H6: 2
D7: 1168 | E7: =+D7/$D$9 -> 0.1910057236 | F7: =ROUND($F$9*E7,0) -> 1505 | G7: Oficina | H7: 4
D8: 560 | E8: =+D8/$D$9 -> 0.09157808667 | F8: =ROUND($F$9*E8,0) -> 721 | G8: Sucursal | H8: 2
D9: =SUM(D4:D8) -> 6115 | F9: 7878
C14: empledado | D14: TOTALAPORTES | E14: TOTALCARTERA | F14: TOTALDEPOSITOS | G14: TOTALINGRESOS | H14: TOTALCOSTOS | I14: OTROSGASTOSADM | J14: VALOREXCEDENTESOFI | K14: TOTALASOCIADOS | L14: TOTALEMPLEADOS | M14: GASTOSPERSONAL | N14: GATOSGENERALES | O14: recuperaciones | P14: Deterioro | Q14: Depreciones y amortizaciones | R14: otros ingresos | S14: otros egresos | T14: valoracion inversiones | U14: costo inversiones | X14: Gastos Generales | Y14: Gast Arriend, Mantenimiento, Papeleria Y Suministros | Z14: Gastos Asamble Y Directivos | AA14: Gastos Papeleria Y Suministros | AB14: Servicios Generales | AC14: Gastos Comerciales
A15: BARRANQUILLA | B15: Direccion General | C15: 27 | D15: 3498712699 | E15: 17789571174 | F15: 2.299666017e+10 | G15: 783035047.9 | H15: 493836372.7 | I15: 476570649 | J15: -976810363.4 | K15: 1713 | L15: 24 | M15: 160856945 | N15: 247449170.9
A16: RIOHACHA | B16: Sucursal | C16: 10 | D16: 7723609671 | E16: 1.792908701e+10 | F16: 2513229759 | G16: 1034637599 | H16: 115567139 | I16: 222349708 | J16: 343386387.7 | K16: 3020 | L16: 3 | M16: 146570419 | N16: 259878626.7
A17: FONSECA | B17: Sucursal | C17: 2 | D17: 7225585293 | E17: 23325832167 | F17: 4161914239 | G17: 1059648250 | H17: 208849743 | I17: 95827226.63 | J17: 783049377.6 | K17: 1503 | L17: 2 | M17: 107340395 | N17: 165289154
A18: VALLEDUPAR | B18: Oficina | C18: 4 | D18: 3978596343 | E18: 14270092027 | F18: 2848176073 | G18: 709712904 | H18: 135172220 | I18: 123676038.7 | J18: 382285327.6 | K18: 1105 | L18: 4 | M18: 121593825 | N18: 168870180
A19: ALBANIA | B19: Sucursal | C19: 2 | D19: 2400866586 | E19: 8228019651 | F19: 1559273293 | G19: 379948047 | H19: 59456499 | I19: 105745983.7 | J19: 297225585.5 | K19: 517 | L19: 2 | M19: 96747944 | N19: 152988655
D20: =SUM(D15:D19) -> 2.482737059e+10 | E20: =SUM(E15:E19) -> 8.154260203e+10 | F20: =SUM(F15:F19) -> 3.407925353e+10 | G20: 3966981848 | H20: 1012881974 | I20: 1024169606 | J20: 829136315.1 | K20: 7858 | L20: 35 | M20: 633109528 | N20: 994475786.5 | XFD20: =SUM(XFD15:XFD19) -> 0
B22: Direccion General | D22: =+D$28*(D15/D$20) -> 3498712699 | E22: =+E$28*(E15/E$20) -> 1.706151498e+10 | F22: =+F$28*(F15/F$20) -> 2.299666017e+10 | G22: =+G$28*(G15/G$20) -> 677882397.8 | H22: =+H$28*(H15/H$20) -> 493836372.7 | M22: =+M$28*(M15/M$20) -> 160856945 | N22: =+N$28*(N15/N$20) -> 247449170.9 | O22: =+O$28*(E15/E$20) -> 109228133.6 | P22: =+P$28*(E15/E$20) -> 116366950.8 | Q22: =+Q$28*(I15/I$20) -> 27295549.83 | R22: =+R$28*(G15/G$20) -> 6325883.406 | S22: =+S$28*(I15/I$20) -> 201073743.6 | X22: =+X$27*($N22/$N$27) -> 76257082.74 | Y22: =+Y$27*($N22/$N$27) -> 26992049.73 | Z22: =+Z$27*($N22/$N$27) -> 79310888.9 | AA22: =+AA$27*($N22/$N$27) -> 9748851.886 | AB22: =+AB$27*($N22/$N$27) -> 39320152.42 | AC22: =+AC$27*($N22/$N$27) -> 15014675.41
B23: Sucursal | D23: =+D$28*(D16/D$20) -> 7723609671 | E23: 1.719532099e+10 | F23: 2513229759 | G23: =+G$28*(G16/G$20) -> 895697604.2 | H23: 115567138.9 | M23: =+M$28*(M16/M$20) -> 146570419 | N23: 259878626.7 | O23: =+O$28*(E16/E$20) -> 110084762.1 | P23: =+P$28*(E16/E$20) -> 117279566 | Q23: =+Q$28*(I16/I$20) -> 12735063.62 | R23: =+R$28*(G16/G$20) -> 8358497.919 | S23: =+S$28*(I16/I$20) -> 93813348.09 | X23: =+X$27*($N23/$N$27) -> 80087501.88 | Y23: 28347869.54 | Z23: 83294701.76 | AA23: 10238540.02 | AB23: 41295217.02 | AC23: 15768867.65
B24: Sucursal | D24: 7225585293 | E24: 2.237119889e+10 | F24: 4161914239 | G24: 917349610.9 | H24: 208849743 | M24: 107340395 | N24: 165289154 | O24: =+O$28*(E17/E$20) -> 143220827.9 | P24: =+P$28*(E17/E$20) -> 152581303.8 | Q24: 5488497.55 | R24: 8560550.767 | S24: 40431233.52 | X24: 50937607.3 | Y24: 18029937.42 | Z24: 52977464.76 | AA24: 6511961.528 | AB24: 26264766.65 | AC24: 10029384.97
B25: Oficina | D25: 3978596343 | E25: 1.368607408e+10 | F25: 2848176073 | G25: 614406579.1 | H25: 135172220 | M25: 121593825 | N25: 168870180 | O25: =+O$28*(E18/E$20) -> 87618498.66 | P25: =+P$28*(E18/E$20) -> 93344976.14 | Q25: 7083536.269 | R25: 5733537.846 | S25: 52181149.11 | X25: 52041181.81 | Y25: 18420559.99 | Z25: 54125233.23 | AA25: 6653044.611 | AB25: 26833798.61 | AC25: 10246673.81
B26: Sucursal | D26: 2400866586 | E26: 7891279623 | F26: 1559273293 | G26: 328925370.3 | H26: 59456499 | M26: 96747944 | N26: 152988655 | O26: =+O$28*(E19/E$20) -> 50520117.7 | P26: =+P$28*(E19/E$20) -> 53821958.3 | Q26: 6056593.653 | R26: 3069475.692 | S26: 44616135.85 | X26: 47146929.13 | Y26: =(+Y$27*($N26/$N$27))+3237110 -> 19925294.36 | Z26: 49034984.35 | AA26: 6027353.952 | AB26: 24310193.54 | AC26: 9283017.55
D27: 24827.37059 | E27: 78205.38855 | F27: 34079.25353 | G27: 3434.261562 | H27: 1012.881974 | M27: 633.109528 | N27: 994.4757865 | O27: 500.67234 | P27: 533.394755 | Q27: 58.65924092 | R27: =21.77093034+T27 -> 32.04794563 | S27: =429.37504016+U27 -> 432.1156102 | T27: 10.27701529 | U27: 2.74057 | X27: 306.4703029 | Y27: 108.478601 | Z27: 318.743273 | AA27: 39.179752 | AB27: 158.0241282 | AC27: 60.34261939
D28: =+D27*1000000 -> 2.482737059e+10 | E28: =+E27*1000000 -> 7.820538855e+10 | F28: 3.407925353e+10 | G28: 3434261562 | H28: 1012881974 | I28: 0 | J28: 0 | K28: 0 | L28: 0 | M28: 633109528 | N28: 994475786.5 | O28: 500672340 | P28: 533394755 | Q28: 58659240.92 | R28: 32047945.63 | S28: 432115610.2 | T28: 10277015.29 | U28: 2740570
Y29: =+Y30*1000000 -> 3237110
Y30: 3.23711
H31: deprecioanes | I31: 115.849322
H32: Otros Gastos | I32: 409.5308674
H33: Otros Ingresos | I33: 242.7605355
H34: Valoracion Inversiones | I34: 202.4310438
D36: TOTALAPORTES | E36: TOTALCARTERA | F36: TOTALDEPOSITOS | G36: TOTALINGRESOS | H36: TOTALCOSTOS | I36: OTROSGASTOSADM | J36: VALOREXCEDENTESOFI | K36: TOTALASOCIADOS | L36: TOTALEMPLEADOS | M36: GASTOSPERSONAL | N36: GATOSGENERALES | O36: recuperaciones | P36: Deterioro | Q36: Depreciones y amortizaciones | R36: otros ingresos | S36: otros egresos | T36: valoracion inversiones | U36: costo inversiones | X36: Gastos Generales | Y36: Gast Arriend, Mantenimiento, Papeleria Y Suministros | Z36: Gastos Asamble Y Directivos | AA36: Gastos Papeleria Y Suministros | AB36: Servicios Generales | AC36: Gastos Comerciales
B37: Sucursal | D37: =+D26 -> 2400866586 | E37: =+E26 -> 7891279623 | F37: =+F26 -> 1559273293 | G37: =+G26 -> 328925370.3 | H37: =+H26 -> 59456499 | M37: =+M26 -> 96747944 | N37: 152988655 | O37: 50520117.7 | P37: 53821958.3 | Q37: 6056593.653 | R37: 3069475.692 | S37: 44616135.85 | T37: 0 | U37: 0 | X37: =+X26 -> 47146929.13 | Y37: =+Y26 -> 19925294.36 | Z37: 49034984.35 | AA37: 6027353.952 | AB37: 24310193.54 | AC37: 9283017.55
B38: Oficina | D38: =+D25 -> 3978596343 | E38: =+E25 -> 1.368607408e+10 | F38: =+F25 -> 2848176073 | G38: =+G25 -> 614406579.1 | H38: =+H25 -> 135172220 | M38: =+M25 -> 121593825 | N38: 168870180 | O38: 87618498.66 | P38: 93344976.14 | Q38: 7083536.269 | R38: 5733537.846 | S38: 52181149.11 | T38: 0 | U38: 0 | X38: =+X25 -> 52041181.81 | Y38: =+Y25 -> 18420559.99 | Z38: 54125233.23 | AA38: 6653044.611 | AB38: 26833798.61 | AC38: 10246673.81
B39: Sucursal | D39: =+D24 -> 7225585293 | E39: =+E24 -> 2.237119889e+10 | F39: =+F24 -> 4161914239 | G39: =+G24 -> 917349610.9 | H39: =+H24 -> 208849743 | M39: =+M24 -> 107340395 | N39: 165289154 | O39: 143220827.9 | P39: 152581303.8 | Q39: 5488497.55 | R39: 8560550.767 | S39: 40431233.52 | T39: 0 | U39: 0 | X39: =+X24 -> 50937607.3 | Y39: =+Y24 -> 18029937.42 | Z39: 52977464.76 | AA39: 6511961.528 | AB39: 26264766.65 | AC39: 10029384.97
B40: Sucursal | D40: =+D23 -> 7723609671 | E40: =+E23 -> 1.719532099e+10 | F40: =+F23 -> 2513229759 | G40: =+G23 -> 895697604.2 | H40: =+H23 -> 115567138.9 | M40: =+M23 -> 146570419 | N40: 259878626.7 | O40: 110084762.1 | P40: 117279566 | Q40: 12735063.62 | R40: 8358497.919 | S40: 93813348.09 | T40: 0 | U40: 0 | X40: =+X23 -> 80087501.88 | Y40: =+Y23 -> 28347869.54 | Z40: 83294701.76 | AA40: 10238540.02 | AB40: 41295217.02 | AC40: 15768867.65
B41: Direccion General | D41: =+D22 -> 3498712699 | E41: =+E22 -> 1.706151498e+10 | F41: =+F22 -> 2.299666017e+10 | G41: =+G22 -> 677882397.8 | H41: =+H22 -> 493836372.7 | M41: =+M22 -> 160856945 | N41: 247449170.9 | O41: 109228133.6 | P41: 116366950.8 | Q41: 27295549.83 | R41: 6325883.406 | S41: 201073743.6 | T41: 0 | U41: 0 | X41: =+X22 -> 76257082.74 | Y41: =+Y22 -> 26992049.73 | Z41: 79310888.9 | AA41: 9748851.886 | AB41: 39320152.42 | AC41: 15014675.41
D44: PATRIMONIO | E44: ACTIVOS | F44: PASIVO
B45: Sucursal | D45: =+D37/SUM(D$37:D$41) -> 0.09670241064 | E45: =+E37/SUM(E$37:E$41) -> 0.1009045511 | F45: =+F37/SUM(F$37:F$41) -> 0.0457543265
B46: Oficina | D46: =+D38/SUM(D$37:D$41) -> 0.1602504111 | E46: =+E38/SUM(E$37:E$41) -> 0.1750016761 | F46: 0.08357507216
B47: Sucursal | D47: =+D39/SUM(D$37:D$41) -> 0.2910330462 | E47: 0.2860570007 | F47: 0.1221245716
B48: Sucursal | D48: =+D40/SUM(D$37:D$41) -> 0.3110925356 | E48: 0.2198738642 | F48: 0.07374661997
B49: Direccion General | D49: =+D41/SUM(D$37:D$41) -> 0.1409215964 | E49: 0.2181629079 | F49: 0.6747994098
D53: ACTIVOS | E53: Efectivo | F53: Inversiones | G53: Inventarios | H53: Cartera Créditos | I53: Cuentas Por Cobrar Y Otras | J53: Activos Materiales | K53: Activos No Corrientes | L53: Otros Activos
B54: Sucursal | E54: =+E$59*($E37/SUM($E$37:$E$41)) -> 333.7548745 | F54: 63.29868264 | G54: 0 | H54: 7891.279623 | I54: 377.6657157 | J54: 259.0793201 | K54: 0 | L54: 15.00903766
B55: Oficina | E55: =+E$59*($E38/SUM($E$37:$E$41)) -> 578.8407146 | F55: 109.7807328 | G55: =+G$59*($E38/SUM($E$37:$E$41)) -> 0 | H55: 13686.07408 | I55: =+I$59*($E38/SUM($E$37:$E$41)) -> 654.9965541 | J55: 449.3287446 | K55: =+K$59*($E38/SUM($E$37:$E$41)) -> 0 | L55: 26.03060733
B56: Sucursal | E56: 946.1705877 | F56: 179.4471222 | G56: =+G$59*($E39/SUM($E$37:$E$41)) -> 0 | H56: 22371.19889 | I56: =+I$59*($E39/SUM($E$37:$E$41)) -> 1070.654601 | J56: 734.4708685 | K56: =+K$59*($E39/SUM($E$37:$E$41)) -> 0 | L56: 42.54952082
B57: Sucursal | E57: 727.26129 | F57: 137.9296157 | G57: =+G$59*($E40/SUM($E$37:$E$41)) -> 0 | H57: 17195.32099 | I57: =+I$59*($E40/SUM($E$37:$E$41)) -> 822.944252 | J57: 564.5411496 | K57: =+K$59*($E40/SUM($E$37:$E$41)) -> 0 | L57: 32.70511661
B58: Direccion General | E58: 721.6020801 | F58: 136.8563115 | G58: =+G$59*($E41/SUM($E$37:$E$41)) -> 0 | H58: 17061.51498 | I58: =+I$59*($E41/SUM($E$37:$E$41)) -> 816.5404817 | J58: 560.1481524 | K58: =+K$59*($E41/SUM($E$37:$E$41)) -> 0 | L58: 32.45062057
E59: 3307.629547 | F59: 627.3124648 | G59: 0 | H59: 78205.38855 | I59: 3742.801605 | J59: 2567.568235 | K59: 0 | L59: 148.744903

Sheet Hoja4 (hidden)
E2: BARRANQUILLA | F2: RIOHACHA | G2: FONSECA | H2: VALLEDUPAR | I2: ALBANIA
C3: 1 | D3: 11 | E3: 1 | F3: 2 | G3: 3 | H3: 4 | I3: 5 | J3: TOTAL
B4: A | C4: 14430037431 | D4: 2872269270 | E4: 1.73023067e+10 | F4: 13597372379 | G4: 22701386474 | H4: 13488661490 | I4: 7888243721 | J4: 7.497797077e+10
B5: B | C5: 928352405 | D5: 162138195 | E5: 1090490600 | F5: 101809970 | G5: 112673672 | H5: 151194817 | I5: 88651296 | J5: 1544820355
B6: C | C6: 596021688 | D6: 250584885 | E6: 846606573 | F6: 0 | G6: 17493074 | H6: 161651388 | I6: 52559096 | J6: 1078310131
B7: D | C7: 561684243 | D7: 266887397 | E7: 828571640 | F7: 63567913 | G7: 45928857 | H7: 77434037 | I7: 98772487 | J7: 1114274934
B8: E | C8: 1273475406 | D8: 315516205 | E8: 1588991611 | F8: 317488890 | G8: 448350087 | H8: 391150296 | I8: 99793052 | J8: 2845773936
B9: CARTERA BRUTA | C9: 17789571173 | D9: 3867395952 | E9: 2.165696713e+10 | F9: 14080239152 | G9: 23325832164 | H9: 14270092028 | I9: 8228019652 | J9: 8.156115012e+10
B10: CARTERA VENCIA | E10: 4354660424 | F10: 482866773 | G10: 624445690 | H10: 781430538 | I10: 339775931 | J10: 6583179356
E11: 0.2010743424 | F11: 0.03429393264 | G11: 0.02677056431 | H11: 0.05476002092 | I11: 0.04129498292 | J11: 0.08071464596
B14: A | C14: 71289258.98 | D14: 0 | E14: 71289258.98 | F14: 12723031 | G14: 22370392 | H14: 12193109 | I14: 7191736 | J14: 125767527
B15: B | C15: 8677319 | D15: 1106426 | E15: 9783745 | F15: 7671564 | G15: 1054165 | H15: 10606739 | I15: 825600 | J15: 29941813
B16: C | C16: 58478004 | D16: 12405369 | E16: 70883373 | F16: 0 | G16: 1749307 | H16: 16184680 | I16: 9010223 | J16: 97827583
B17: D | C17: 104644055 | D17: 34880901 | E17: 139524956 | F17: 10666882 | G17: 9185771 | H17: 16955254 | I17: 20246326 | J17: 196579189
B18: E | C18: 1003182472 | D18: 233960616 | E18: 1237143088 | F18: 270688661 | G18: 352657684 | H18: 341598318 | I18: 76797229 | J18: 2278884980
C19: 1246271109 | D19: 282353312 | E19: 1528624421 | F19: 301750138 | G19: 387017319 | H19: 397538100 | I19: 114071114 | J19: 2729001092
E20: 0.2840963399 | F20: 0.5605866383 | G20: 0.5647531717 | H20: 0.4371448278 | I20: 0.2260231582 | J20: 0.4145415071
E22: 485717779.8 | F22: 315788561.7 | G22: 523146724.3 | H22: 320046541 | I22: 184536247.1 | J22: 1829235854 | L22: 1829.235854
E23: 2014342201 | F23: 617538699.7 | G23: 910164043.3 | H23: 717584641 | I23: 298607361.1 | J23: 4558236946
E24: 0.462571591 | F24: 1.278900795 | G24: 1.457555169 | H24: 0.9182961327 | I24: 0.8788361208 | J24: 0.6924066168
B26: Aportes sociales | C26: 2770528711 | D26: 2204067329 | E26: 4974596041 | F26: 3941856083 | G26: 5832916805 | H26: 4011708226 | I26: 2359552773 | J26: 2.112062993e+10
